{"text_format":"1","workbook":"xlsx","n_sheets":1,"sheets":["BulkCreateListingExample"],"not_rendered":{"charts":0,"images":0,"macros":1,"external_links":0,"defined_names":3,"comments":0,"pivot_tables":0},"unopened":[],"bounds":{"document_bytes":16777216,"sheet_cells":100000,"rows_first":2000,"rows_last":500,"rows_between":2000,"halvings":0,"cell_chars":16384,"cell_head_chars":4096},"cells_cut":0,"cells_raw":0,"read":"whole","date_system":"1900"}

{"sheet":"BulkCreateListingExample","index":0,"n_rows":6,"n_cols":76,"rows_kept":6,"cut":false,"hidden":false,"merged":[]}
["ProductSKU","Description","Brand","Height_IN","Weight_LBS","Width_IN","Depth_IN","ProductImage","productRadius","Markoffer","Condition","CheckQuality","Price","Freeplan","Quantity","Warrantyname","Warrantyplan","Warrantyduration","Warrantyperiod","Pickup","PickupAddress","Zipcode","City","Pickup_Schedule_Monday_From","Pickup_Schedule_Monday_To","Pickup_Schedule_Tuesday_From","Pickup_Schedule_Tuesday_To","Pickup_Schedule_Wednesday_From","Pickup_Schedule_Wednesday_To","Pickup_Schedule_Thursday_From","Pickup_Schedule_Thursday_To","Pickup_Schedule_Friday_From","Pickup_Schedule_Friday_To","Pickup_Schedule_Saturday_From","Pickup_Schedule_Saturday_To","Pickup_Schedule_Sunday_From","Pickup_Schedule_Sunday_To","Delivery","Delivery_Schedule_Monday_From","Delivery_Schedule_Monday_To","Delivery_Schedule_Tuesday_From","Delivery_Schedule_Tuesday_To","Delivery_Schedule_Wednesday_From","Delivery_Schedule_Wednesday_To","Delivery_Schedule_Thursday_From","Delivery_Schedule_Thursday_To","Delivery_Schedule_Friday_From","Delivery_Schedule_Friday_To","Delivery_Schedule_Saturday_From","Delivery_Schedule_Saturday_To","Delivery_Schedule_Sunday_From","Delivery_Schedule_Sunday_To","Howmanydays","Curbside","Curbside_miles","Curbside_charages","Threshold","Threshold_Miles","Threshold_Charages","Threshold_Flight","Threshold_Door","White_Glove","White_Glove_Miles","White_Glove_Charages","White_Glove_Flight","White_Glove_Door","FullServiceInstallation","FullServiceInstallation_Miles","FullServiceInstallation_Charages","Full_Service_Flight","Full_Service_Door",null,"                          NOt required","Used","Plans","Time"]
["1224KING","Test Description",null,null,null,null,null,"https://cdn.shopify.com/s/files/1/0070/7032/files/diy-product-photography.jpg,https://cdn.shopify.com/s/files/1/0070/7032/files/image5_4578a9e6-2eff-4a5a-8d8c-9292252ec848.jpg,https://cdn.shopify.com/s/files/1/0070/7032/files/image9_917ecfe9-4ca1-4367-9513-2c3442353053.png",10,"true","Scrap",null,null,"false",null,"No Warranty",null,null,null,{"$f":"FALSE()","v":false},null,35226,null,null,null,null,null,null,null,null,null,null,null,null,null,null,null,{"$f":"TRUE()","v":true},null,null,null,null,null,null,null,null,null,null,null,null,null,null,null,{"$f":"FALSE()","v":false},null,null,{"$f":"TRUE()","v":true},null,null,null,null,{"$f":"TRUE()","v":true},null,null,null,null,{"$f":"TRUE()","v":true},null,null,null,null,null,null,"Used-new","Parts Only","years"]
["40957","Test Image Description",null,"44","12","22","11","https://pngimg.com/uploads/mario/mario_PNG125.png,https://www.adobe.com/express/feature/image/media_16ad2258cac6171d66942b13b8cd4839f0b6be6f3.png,https://cdn.shopify.com/s/files/1/0070/7032/files/image9_917ecfe9-4ca1-4367-9513-2c3442353053.png",100,"false","Refurbished",null,501,"false",3,"No Warranty",null,null,null,{"$f":"TRUE()","v":true},"Alford Ave, Hoover, AL 35226, USA",35226,"Hoover","10:00 AM","3:00 PM","10:00 AM","1:00 PM","8:00 AM","2:00 PM","8:00 AM","9:00 AM","9:00 AM","3:00 PM","10:00 AM","11:00 PM","9:00 AM","3:00 PM",{"$f":"TRUE()","v":true},"9:00 AM","2:00 PM","9:00 AM","2:00 PM","9:00 AM","4:00 PM","8:00 AM","3:00 PM","9:00 AM","9:00 AM","10:00 AM","4:00 PM","11:00 AM","2:00 PM",10,{"$f":"TRUE()","v":true},5,5,{"$f":"TRUE()","v":true},6,6,2,2,{"$f":"TRUE()","v":true},10,10,10,10,{"$f":"TRUE()","v":true},15,4,4,4,null,"                               For internal useonly","Used-good","Labor Only","months"]
["40930","Test Image Description",null,"65","120","32","32","https://pngimg.com/uploads/mario/mario_PNG125.png,https://www.adobe.com/express/feature/image/media_16ad2258cac6171d66942b13b8cd4839f0b6be6f3.png,https://cdn.shopify.com/s/files/1/0070/7032/files/image9_917ecfe9-4ca1-4367-9513-2c3442353053.png",200,"false","Scrap",null,11,"false",1,"No Warranty",null,null,null,{"$f":"TRUE()","v":true},"Alford Ave, Hoover, AL 35226, USA",35226,"Hoover","10:00 AM","4:00 PM","10:00 AM","6:00 PM","9:00 AM","3:00 PM","9:00 AM","10:00 AM","3:00 PM","3:00 PM","11:00 AM","3:00 PM","10:00 AM","6:00 PM",{"$f":"TRUE()","v":true},"10:00 AM","2:00 PM","11:00 AM","2:00 PM","9:00 AM","4:00 PM","9:00 AM","3:00 PM","9:00 AM","9:00 AM","10:00 AM","4:00 PM","11:00 AM","2:00 PM",10,{"$f":"FALSE()","v":false},5,5,{"$f":"TRUE()","v":true},6,6,2,2,{"$f":"TRUE()","v":true},10,10,10,10,{"$f":"FALSE()","v":false},15,4,4,4,null,null,"Used-fair","Parts and Labor","days"]
["DDR060BM","Test Image Description",null,"43","23","24","43","https://pngimg.com/uploads/mario/mario_PNG125.png,https://www.adobe.com/express/feature/image/media_16ad2258cac6171d66942b13b8cd4839f0b6be6f3.png,https://cdn.shopify.com/s/files/1/0070/7032/files/image9_917ecfe9-4ca1-4367-9513-2c3442353053.png",300,"true","Scrap",null,12,"false",1,"No Warranty",null,null,null,{"$f":"TRUE()","v":true},"Alford Ave, Hoover, AL 35226, USA",35226,"Hoover","2:00 PM","5:00 PM","10:00 AM","3:00 PM","9:00 AM","3:00 PM","9:00 AM","10:00 AM","9:00 PM","2:00 PM","12:00 AM","3:00 PM","9:00 AM","7:00 PM",{"$f":"FALSE()","v":false},"11:00 AM","2:00 PM","10:00 AM","3:00 PM","9:00 AM","4:00 PM","9:00 AM","3:00 PM","9:00 AM","9:00 AM","10:00 AM","4:00 PM","11:00 AM","2:00 PM",19,{"$f":"TRUE()","v":true},5,5,null,6,6,2,2,{"$f":"FALSE()","v":false},10,10,10,10,{"$f":"TRUE()","v":true},15,4,4,4]
[null,null,null,null,null,null,null,null,null,null,null,null,null,null,null,"No Warranty"]